[Event "Early-Titled-Tuesday-Blitz-February-27-2024"]
[Site "Chess.com"]
[Date "2024.02.27"]
[Round "4"]
[White "toninhojit"]
[Black "mary-sanna"]
[Result "0-1"]
[WhiteElo "2466"]
[BlackElo "2188"]
[TimeControl "180+1"]
[EndTime "8:38:49 PST"]
[Termination "mary-sanna won by checkmate"]

1. d4 {[%clk 0:03:00.9]} 1... d5 {[%clk 0:02:58.5]} 2. c4 {[%clk 0:03:01.2]}
2... e6 {[%clk 0:02:58.4]} 3. Nf3 {[%clk 0:03:01.8]} 3... Nf6 {[%clk 0:02:57.9]}
4. Nc3 {[%clk 0:03:02.4]} 4... c5 {[%clk 0:02:57.5]} 5. e3 {[%clk 0:03:02]} 5...
Nc6 {[%clk 0:02:56.9]} 6. a3 {[%clk 0:03:02.1]} 6... cxd4 {[%clk 0:02:53.2]} 7.
exd4 {[%clk 0:03:03]} 7... Be7 {[%clk 0:02:51.3]} 8. c5 {[%clk 0:03:02.7]} 8...
O-O {[%clk 0:02:51.2]} 9. Bd3 {[%clk 0:03:01.2]} 9... b6 {[%clk 0:02:50.5]} 10.
b4 {[%clk 0:02:59]} 10... bxc5 {[%clk 0:02:47.6]} 11. bxc5 {[%clk 0:02:59.1]}
11... h6 {[%clk 0:02:34.5]} 12. O-O {[%clk 0:02:58.7]} 12... Qc7 {[%clk
0:02:34.7]} 13. Nb5 {[%clk 0:02:50.1]} 13... Qa5 {[%clk 0:02:30.8]} 14. Bd2
{[%clk 0:02:48.5]} 14... Qd8 {[%clk 0:02:21.6]} 15. Bf4 {[%clk 0:02:45.7]} 15...
a6 {[%clk 0:02:07.7]} 16. Nc3 {[%clk 0:02:20.5]} 16... Qa5 {[%clk 0:01:54.6]}
17. Qc2 {[%clk 0:02:01.3]} 17... Rd8 {[%clk 0:01:46.1]} 18. Rfb1 {[%clk
0:01:59.9]} 18... Nd7 {[%clk 0:01:19.5]} 19. Ne2 {[%clk 0:01:07.8]} 19... e5
{[%clk 0:01:15.8]} 20. Bd2 {[%clk 0:01:03.1]} 20... Qc7 {[%clk 0:01:13.8]} 21.
dxe5 {[%clk 0:00:50.5]} 21... Ndxe5 {[%clk 0:01:14.6]} 22. Nxe5 {[%clk
0:00:45.3]} 22... Nxe5 {[%clk 0:01:14.2]} 23. Be3 {[%clk 0:00:41.2]} 23... Ng4
{[%clk 0:00:55.1]} 24. Bf4 {[%clk 0:00:39.7]} 24... Qxc5 {[%clk 0:00:55.2]} 25.
Ng3 {[%clk 0:00:26]} 25... Qxc2 {[%clk 0:00:48.2]} 26. Bxc2 {[%clk 0:00:26.9]}
26... Bf6 {[%clk 0:00:47.9]} 27. Ra2 {[%clk 0:00:25.4]} 27... Be6 {[%clk
0:00:44.9]} 28. h3 {[%clk 0:00:25.5]} 28... Ne5 {[%clk 0:00:42.5]} 29. Ba4
{[%clk 0:00:22.5]} 29... d4 {[%clk 0:00:40.4]} 30. Rd2 {[%clk 0:00:20.8]} 30...
d3 {[%clk 0:00:35.3]} 31. Ne4 {[%clk 0:00:15.9]} 31... Bg5 {[%clk 0:00:25.3]}
32. Nxg5 {[%clk 0:00:14]} 32... Nc4 {[%clk 0:00:21.2]} 33. Nxe6 {[%clk
0:00:13.8]} 33... Nxd2 {[%clk 0:00:20.2]} 34. Bxd2 {[%clk 0:00:11.7]} 34... fxe6
{[%clk 0:00:19.1]} 35. Bb3 {[%clk 0:00:11.4]} 35... Kf7 {[%clk 0:00:18.3]} 36.
Re1 {[%clk 0:00:11.3]} 36... Rd6 {[%clk 0:00:16.6]} 37. Bb4 {[%clk 0:00:10.6]}
37... Rb6 {[%clk 0:00:13.8]} 38. Bc4 {[%clk 0:00:08.6]} 38... a5 {[%clk
0:00:13.2]} 39. Bc5 {[%clk 0:00:07.9]} 39... Rc6 {[%clk 0:00:13.1]} 40. Re5
{[%clk 0:00:07.1]} 40... Rac8 {[%clk 0:00:13.3]} 41. Kh2 {[%clk 0:00:04.4]}
41... Rxc5 {[%clk 0:00:13.4]} 42. Bxe6+ {[%clk 0:00:04.7]} 42... Kf6 {[%clk
0:00:13.7]} 43. Re3 {[%clk 0:00:02.5]} 43... Re8 {[%clk 0:00:13]} 44. Rxd3
{[%clk 0:00:01.6]} 44... Rxe6 {[%clk 0:00:13.1]} 45. Rf3+ {[%clk 0:00:02.5]}
45... Ke7 {[%clk 0:00:13.1]} 46. Rd3 {[%clk 0:00:03.4]} 46... Rd6 {[%clk
0:00:13.4]} 47. Rf3 {[%clk 0:00:03.8]} 47... Rf6 {[%clk 0:00:13.7]} 48. Rg3
{[%clk 0:00:04.1]} 48... Rxf2 {[%clk 0:00:13.8]} 49. Rd3 {[%clk 0:00:04.5]}
49... Kf6 {[%clk 0:00:14]} 50. Kg3 {[%clk 0:00:04.5]} 50... Rcc2 {[%clk
0:00:14.1]} 51. Rd6+ {[%clk 0:00:05]} 51... Ke7 {[%clk 0:00:14.5]} 52. Ra6
{[%clk 0:00:04.7]} 52... Rxg2+ {[%clk 0:00:14.8]} 53. Kh4 {[%clk 0:00:05.4]}
53... Rc4+ {[%clk 0:00:14.6]} 54. Kh5 {[%clk 0:00:05.3]} 54... Rg5# {[%clk
0:00:15.1]} 0-1

[Event "Early-Titled-Tuesday-Blitz-February-27-2024"]
[Site "Chess.com"]
[Date "2024.02.27"]
[Round "4"]
[White "DefiantChair"]
[Black "Vaathi_Coming"]
[Result "0-1"]
[WhiteElo "2611"]
[BlackElo "2912"]
[TimeControl "180+1"]
[EndTime "8:38:50 PST"]
[Termination "Vaathi_Coming won by resignation"]

1. e4 {[%clk 0:03:00.9]} 1... Nc6 {[%clk 0:02:54.6]} 2. Nf3 {[%clk 0:03:00.6]}
2... d6 {[%clk 0:02:53]} 3. Bb5 {[%clk 0:03:00.6]} 3... e5 {[%clk 0:02:50.9]} 4.
c3 {[%clk 0:02:57.9]} 4... f5 {[%clk 0:02:48.1]} 5. exf5 {[%clk 0:02:58.8]} 5...
Bxf5 {[%clk 0:02:48.7]} 6. O-O {[%clk 0:02:58]} 6... a6 {[%clk 0:02:43.8]} 7.
Ba4 {[%clk 0:02:58]} 7... Bd3 {[%clk 0:02:41.6]} 8. Re1 {[%clk 0:02:58.1]} 8...
Be7 {[%clk 0:02:40.9]} 9. Re3 {[%clk 0:02:51.1]} 9... e4 {[%clk 0:02:38.4]} 10.
Ne1 {[%clk 0:02:50.3]} 10... Bg5 {[%clk 0:02:37.8]} 11. Rg3 {[%clk 0:02:50.3]}
11... Bh4 {[%clk 0:02:27.8]} 12. Nxd3 {[%clk 0:02:32.2]} 12... Bxg3 {[%clk
0:02:25.3]} 13. Nb4 {[%clk 0:02:32.3]} 13... Bxf2+ {[%clk 0:02:11.7]} 14. Kxf2
{[%clk 0:02:32.3]} 14... Qh4+ {[%clk 0:02:12.1]} 15. Kg1 {[%clk 0:02:32.4]}
15... Nh6 {[%clk 0:01:54.8]} 16. Nxc6 {[%clk 0:02:28.8]} 16... O-O {[%clk
0:01:54.5]} 17. g3 {[%clk 0:01:38.8]} 17... Qh3 {[%clk 0:01:33.1]} 18. Ne7+
{[%clk 0:01:01.7]} 18... Kh8 {[%clk 0:01:31.8]} 19. Bd7 {[%clk 0:00:47.2]} 19...
Qxd7 {[%clk 0:01:29.9]} 20. Nd5 {[%clk 0:00:47.4]} 20... Ng4 {[%clk 0:01:15.7]}
21. d4 {[%clk 0:00:42]} 21... Nf2 {[%clk 0:00:57.7]} 22. Qe1 {[%clk 0:00:28.2]}
22... Nd3 {[%clk 0:00:19]} 23. Qd1 {[%clk 0:00:27.2]} 23... Qf5 {[%clk 0:00:19]}
24. Nf4 {[%clk 0:00:24.5]} 24... Nxc1 {[%clk 0:00:19.2]} 25. Qxc1 {[%clk
0:00:20]} 25... g5 {[%clk 0:00:19.9]} 26. Na3 {[%clk 0:00:09.4]} 26... gxf4
{[%clk 0:00:18.9]} 27. Qxf4 {[%clk 0:00:10.3]} 27... Qxf4 {[%clk 0:00:17.5]} 28.
gxf4 {[%clk 0:00:11.2]} 28... Rxf4 {[%clk 0:00:18.1]} 29. Nc4 {[%clk 0:00:11.9]}
29... Rg8+ {[%clk 0:00:18.5]} 30. Kh1 {[%clk 0:00:12.4]} 30... Rf2 {[%clk
0:00:15.6]} 31. a4 {[%clk 0:00:11.2]} 31... Rgg2 {[%clk 0:00:11.8]} 32. Ne3
{[%clk 0:00:09.2]} 32... Rxh2+ {[%clk 0:00:12.1]} 33. Kg1 {[%clk 0:00:09.2]}
33... Re2 {[%clk 0:00:11.8]} 34. Rf1 {[%clk 0:00:08.3]} 34... Rh5 {[%clk
0:00:10.5]} 35. Nc4 {[%clk 0:00:03.8]} 35... Rg5+ {[%clk 0:00:10.2]} 36. Kh1
{[%clk 0:00:04.5]} 36... Kg7 {[%clk 0:00:09.5]} 37. d5 {[%clk 0:00:04.5]} 37...
e3 {[%clk 0:00:08.6]} 38. Rf3 {[%clk 0:00:03.4]} 38... Re1+ {[%clk 0:00:06.4]}
39. Kh2 {[%clk 0:00:03.7]} 39... e2 {[%clk 0:00:05.7]} 40. Re3 {[%clk
0:00:04.4]} 40... Rxd5 {[%clk 0:00:04.4]} 41. a5 {[%clk 0:00:03.7]} 41... Rc5
{[%clk 0:00:04]} 42. Na3 {[%clk 0:00:03.9]} 42... Re5 {[%clk 0:00:03.5]} 43.
Rxe5 {[%clk 0:00:03.6]} 43... dxe5 {[%clk 0:00:04.4]} 0-1

[Event "Early-Titled-Tuesday-Blitz-February-27-2024"]
[Site "Chess.com"]
[Date "2024.02.27"]
[Round "4"]
[White "regenda"]
[Black "LiadCuba"]
[Result "0-1"]
[WhiteElo "2256"]
[BlackElo "2499"]
[TimeControl "180+1"]
[EndTime "8:38:51 PST"]
[Termination "LiadCuba won on time"]

1. e4 {[%clk 0:03:00.9]} 1... d5 {[%clk 0:02:50.6]} 2. e5 {[%clk 0:02:57.9]}
2... c5 {[%clk 0:02:46.9]} 3. f4 {[%clk 0:02:49.2]} 3... Bf5 {[%clk 0:02:43.6]}
4. Bb5+ {[%clk 0:02:47.5]} 4... Nc6 {[%clk 0:02:43.2]} 5. Nf3 {[%clk 0:02:47.4]}
5... e6 {[%clk 0:02:42.8]} 6. O-O {[%clk 0:02:45.3]} 6... h5 {[%clk 0:02:32.1]}
7. h3 {[%clk 0:02:45]} 7... Ne7 {[%clk 0:02:31.6]} 8. d3 {[%clk 0:02:43.2]} 8...
a6 {[%clk 0:02:29.1]} 9. Bxc6+ {[%clk 0:02:42]} 9... Nxc6 {[%clk 0:02:30]} 10.
Nc3 {[%clk 0:02:37.2]} 10... Be7 {[%clk 0:02:28.8]} 11. Ne2 {[%clk 0:02:25.4]}
11... b5 {[%clk 0:02:14.4]} 12. a3 {[%clk 0:02:23.3]} 12... Qb6 {[%clk
0:02:13.7]} 13. Kh2 {[%clk 0:02:21.1]} 13... O-O-O {[%clk 0:02:01.4]} 14. Be3
{[%clk 0:02:12.3]} 14... d4 {[%clk 0:01:59.9]} 15. Bf2 {[%clk 0:02:11.1]} 15...
f6 {[%clk 0:01:47.6]} 16. Ng3 {[%clk 0:01:58.8]} 16... fxe5 {[%clk 0:01:40.5]}
17. fxe5 {[%clk 0:01:21.4]} 17... g5 {[%clk 0:01:39.9]} 18. Qd2 {[%clk
0:01:20.8]} 18... g4 {[%clk 0:01:33.8]} 19. Nxf5 {[%clk 0:01:14.6]} 19... gxf3
{[%clk 0:01:26.9]} 20. Nxe7+ {[%clk 0:01:13.2]} 20... Nxe7 {[%clk 0:01:27.8]}
21. gxf3 {[%clk 0:01:06]} 21... Nf5 {[%clk 0:01:23]} 22. Rg1 {[%clk 0:01:03.2]}
22... Rhg8 {[%clk 0:01:17.6]} 23. Rxg8 {[%clk 0:00:55.2]} 23... Rxg8 {[%clk
0:01:18.5]} 24. Rg1 {[%clk 0:00:55.4]} 24... Rxg1 {[%clk 0:01:18]} 25. Kxg1
{[%clk 0:00:54]} 25... Qc6 {[%clk 0:01:11.9]} 26. Kg2 {[%clk 0:00:45.4]} 26...
Qd5 {[%clk 0:00:59]} 27. Qf4 {[%clk 0:00:37.4]} 27... c4 {[%clk 0:00:57.4]} 28.
Qe4 {[%clk 0:00:28.9]} 28... c3 {[%clk 0:00:50.1]} 29. Qxd5 {[%clk 0:00:14.3]}
29... exd5 {[%clk 0:00:51]} 30. bxc3 {[%clk 0:00:09.5]} 30... dxc3 {[%clk
0:00:51.9]} 31. f4 {[%clk 0:00:02.7]} 31... Kd7 {[%clk 0:00:44.6]} 32. Kf3
{[%clk 0:00:03]} 32... a5 {[%clk 0:00:40.6]} 33. Ke2 {[%clk 0:00:02.6]} 33...
Kc6 {[%clk 0:00:39.6]} 34. d4 {[%clk 0:00:01.2]} 34... b4 {[%clk 0:00:39.5]} 35.
Kd3 {[%clk 0:00:01.7]} 35... Kb5 {[%clk 0:00:39.6]} 36. axb4 {[%clk 0:00:01.9]}
36... axb4 {[%clk 0:00:39.7]} 37. Be1 {[%clk 0:00:01.9]} 37... Ka4 {[%clk
0:00:36]} 38. Bxc3 {[%clk 0:00:02.1]} 38... bxc3 {[%clk 0:00:36.9]} 39. Kxc3
{[%clk 0:00:03]} 39... Kb5 {[%clk 0:00:36.3]} 40. Kd3 {[%clk 0:00:03.6]} 40...
Kb4 {[%clk 0:00:33.7]} 41. c3+ {[%clk 0:00:04]} 41... Kb3 {[%clk 0:00:32.9]} 42.
Kd2 {[%clk 0:00:04.5]} 42... Kc4 {[%clk 0:00:33]} 43. Kc2 {[%clk 0:00:05]} 43...
h4 {[%clk 0:00:32.3]} 44. Kd2 {[%clk 0:00:04.9]} 44... Ng3 {[%clk 0:00:26]} 45.
Kc2 {[%clk 0:00:04.1]} 45... Ne4 {[%clk 0:00:15.5]} 46. f5 {[%clk 0:00:04]}
46... Nf2 {[%clk 0:00:13.6]} 47. f6 {[%clk 0:00:04]} 47... Nxh3 {[%clk
0:00:13.9]} 48. f7 {[%clk 0:00:04]} 48... Ng5 {[%clk 0:00:07.9]} 49. f8=Q {[%clk
0:00:04.9]} 49... Ne4 {[%clk 0:00:08.4]} 50. Qh6 {[%clk 0:00:02.5]} 50... Nxc3
{[%clk 0:00:07.1]} 0-1

[Event "Early-Titled-Tuesday-Blitz-February-27-2024"]
[Site "Chess.com"]
[Date "2024.02.27"]
[Round "4"]
[White "banhgiahuy2606"]
[Black "martinmena"]
[Result "1-0"]
[WhiteElo "2651"]
[BlackElo "2247"]
[TimeControl "180+1"]
[EndTime "8:38:53 PST"]
[Termination "banhgiahuy2606 won by resignation"]

1. c4 {[%clk 0:02:54.2]} 1... e6 {[%clk 0:02:56.6]} 2. Nf3 {[%clk 0:02:54.2]}
2... Nf6 {[%clk 0:02:56.1]} 3. g3 {[%clk 0:02:54.5]} 3... d5 {[%clk 0:02:53.2]}
4. Bg2 {[%clk 0:02:55]} 4... Be7 {[%clk 0:02:53.8]} 5. O-O {[%clk 0:02:54.5]}
5... O-O {[%clk 0:02:52.6]} 6. b3 {[%clk 0:02:55]} 6... c5 {[%clk 0:02:45.3]} 7.
cxd5 {[%clk 0:02:54.2]} 7... exd5 {[%clk 0:02:41.3]} 8. d4 {[%clk 0:02:54.4]}
8... Be6 {[%clk 0:02:34.2]} 9. Nc3 {[%clk 0:02:53.2]} 9... Nc6 {[%clk
0:02:30.8]} 10. Bb2 {[%clk 0:02:51.7]} 10... Ne4 {[%clk 0:02:19.2]} 11. Rc1
{[%clk 0:02:48.5]} 11... cxd4 {[%clk 0:02:16]} 12. Nxd4 {[%clk 0:02:46.4]} 12...
Nxd4 {[%clk 0:02:14.2]} 13. Qxd4 {[%clk 0:02:25.3]} 13... Bc5 {[%clk 0:01:57.8]}
14. Qd3 {[%clk 0:02:20.5]} 14... Nxf2 {[%clk 0:01:44.3]} 15. Rxf2 {[%clk
0:02:19.2]} 15... Qf6 {[%clk 0:01:43.6]} 16. Rf1 {[%clk 0:02:10.7]} 16... Bxf2+
{[%clk 0:01:26.3]} 17. Rxf2 {[%clk 0:02:10.1]} 17... Qg6 {[%clk 0:01:26.4]} 18.
Qd4 {[%clk 0:02:08.8]} 18... Rfd8 {[%clk 0:01:16.2]} 19. e3 {[%clk 0:01:50.6]}
19... Rac8 {[%clk 0:01:06.3]} 20. Bf1 {[%clk 0:01:41.1]} 20... a6 {[%clk
0:00:19.2]} 21. Bd3 {[%clk 0:01:40.2]} 21... Qg4 {[%clk 0:00:19.3]} 22. Rf4
{[%clk 0:01:35.4]} 22... Qg5 {[%clk 0:00:19]} 23. Kg2 {[%clk 0:01:32]} 23... f6
{[%clk 0:00:15.1]} 24. h4 {[%clk 0:01:28]} 24... Qh5 {[%clk 0:00:15.3]} 25. Be2
{[%clk 0:01:27.3]} 25... Qg6 {[%clk 0:00:14.2]} 26. h5 {[%clk 0:01:21.4]} 26...
Qc2 {[%clk 0:00:11.8]} 27. Ba1 {[%clk 0:00:48.9]} 27... Rxc3 {[%clk 0:00:11.6]}
28. Bxc3 {[%clk 0:00:48.2]} 28... Qxe2+ {[%clk 0:00:11.2]} 29. Rf2 {[%clk
0:00:48.8]} 29... Qxh5 {[%clk 0:00:11.2]} 30. Qb6 {[%clk 0:00:48.1]} 30... Rd7
{[%clk 0:00:09.7]} 31. Qxe6+ {[%clk 0:00:45.8]} 31... Qf7 {[%clk 0:00:07.8]} 32.
Qxf7+ {[%clk 0:00:45.7]} 32... Kxf7 {[%clk 0:00:08.7]} 33. Bd4 {[%clk 0:00:46]}
33... b5 {[%clk 0:00:08.8]} 34. Rc2 {[%clk 0:00:46.1]} 34... a5 {[%clk
0:00:08.1]} 35. Rc5 {[%clk 0:00:46]} 35... a4 {[%clk 0:00:07.1]} 36. Rxb5 {[%clk
0:00:45.9]} 36... axb3 {[%clk 0:00:08]} 37. Rxb3 {[%clk 0:00:45.6]} 37... Ke6
{[%clk 0:00:05.9]} 38. a4 {[%clk 0:00:46.1]} 38... Rd6 {[%clk 0:00:05.1]} 39. a5
{[%clk 0:00:46.4]} 39... Kf5 {[%clk 0:00:04.1]} 40. Ra3 {[%clk 0:00:46.2]} 40...
Ra6 {[%clk 0:00:03.5]} 41. Bb6 {[%clk 0:00:46.2]} 41... Ke4 {[%clk 0:00:03.3]}
42. Ra4+ {[%clk 0:00:46.8]} 42... Ke5 {[%clk 0:00:03.2]} 43. Kf3 {[%clk
0:00:47]} 43... f5 {[%clk 0:00:03.3]} 44. Ke2 {[%clk 0:00:45.3]} 44... g5 {[%clk
0:00:03.3]} 45. Ra1 {[%clk 0:00:44.8]} 45... h5 {[%clk 0:00:03]} 46. Rh1 {[%clk
0:00:44.9]} 46... h4 {[%clk 0:00:02.5]} 47. gxh4 {[%clk 0:00:45.8]} 47... gxh4
{[%clk 0:00:02.5]} 48. Rxh4 {[%clk 0:00:46.7]} 48... d4 {[%clk 0:00:02.2]} 49.
exd4+ {[%clk 0:00:46.3]} 49... Kd5 {[%clk 0:00:02.8]} 50. Kd3 {[%clk 0:00:46.6]}
50... Ra8 {[%clk 0:00:01.7]} 51. Rh5 {[%clk 0:00:46.1]} 51... Rf8 {[%clk
0:00:02.2]} 52. a6 {[%clk 0:00:45.5]} 52... Ke6 {[%clk 0:00:02.2]} 53. a7 {[%clk
0:00:44.9]} 53... Ra8 {[%clk 0:00:03.1]} 54. Kc4 {[%clk 0:00:43.3]} 54... f4
{[%clk 0:00:02.9]} 55. d5+ {[%clk 0:00:42.5]} 55... Kf6 {[%clk 0:00:02.5]} 56.
Bd4+ {[%clk 0:00:41.7]} 56... Kg6 {[%clk 0:00:02.1]} 57. Rh1 {[%clk 0:00:41.5]}
57... f3 {[%clk 0:00:02.6]} 58. Rf1 {[%clk 0:00:41.7]} 58... Rf8 {[%clk
0:00:01.6]} 59. Rxf3 {[%clk 0:00:41.3]} 59... Rxf3 {[%clk 0:00:01.7]} 60. a8=Q
{[%clk 0:00:40.7]} 60... Kf5 {[%clk 0:00:02.6]} 61. Qf8+ {[%clk 0:00:40.5]}
61... Ke4 {[%clk 0:00:03.5]} 62. Qxf3+ {[%clk 0:00:41]} 62... Kxf3 {[%clk
0:00:04.4]} 63. d6 {[%clk 0:00:41.8]} 63... Ke4 {[%clk 0:00:04.8]} 64. d7 {[%clk
0:00:42.7]} 1-0

[Event "Early-Titled-Tuesday-Blitz-February-27-2024"]
[Site "Chess.com"]
[Date "2024.02.27"]
[Round "4"]
[White "Baronessa08"]
[Black "leclash"]
[Result "0-1"]
[WhiteElo "2526"]
[BlackElo "2409"]
[TimeControl "180+1"]
[EndTime "8:38:54 PST"]
[Termination "leclash won on time"]

1. Nf3 {[%clk 0:02:57.4]} 1... d5 {[%clk 0:02:44.5]} 2. b3 {[%clk 0:02:55.9]}
2... Bg4 {[%clk 0:02:43.5]} 3. e3 {[%clk 0:02:55.6]} 3... Nd7 {[%clk 0:02:44]}
4. Bb2 {[%clk 0:02:55.2]} 4... Ngf6 {[%clk 0:02:44.2]} 5. h3 {[%clk 0:02:51.1]}
5... Bxf3 {[%clk 0:02:43.7]} 6. Qxf3 {[%clk 0:02:50.6]} 6... e6 {[%clk
0:02:42.9]} 7. c4 {[%clk 0:02:49.2]} 7... c6 {[%clk 0:02:40.7]} 8. g4 {[%clk
0:02:40.8]} 8... h6 {[%clk 0:02:26.6]} 9. Bg2 {[%clk 0:02:27.6]} 9... Bd6 {[%clk
0:02:24.2]} 10. O-O {[%clk 0:02:24.2]} 10... Qe7 {[%clk 0:02:18.7]} 11. Qe2
{[%clk 0:02:21.3]} 11... O-O {[%clk 0:02:04.7]} 12. f4 {[%clk 0:02:17.6]} 12...
e5 {[%clk 0:02:03.9]} 13. cxd5 {[%clk 0:01:49.1]} 13... exf4 {[%clk 0:01:25.3]}
14. dxc6 {[%clk 0:01:47.8]} 14... bxc6 {[%clk 0:01:24.4]} 15. Nc3 {[%clk
0:01:38.2]} 15... fxe3 {[%clk 0:01:22.2]} 16. dxe3 {[%clk 0:01:16.1]} 16... Qe5
{[%clk 0:01:08.9]} 17. Bf3 {[%clk 0:01:11.3]} 17... Qg3+ {[%clk 0:00:56.9]} 18.
Qg2 {[%clk 0:01:10.5]} 18... Rae8 {[%clk 0:00:44.8]} 19. Rae1 {[%clk 0:01:00.6]}
19... Qxg2+ {[%clk 0:00:38.2]} 20. Kxg2 {[%clk 0:01:01.5]} 20... Ne5 {[%clk
0:00:38]} 21. Be2 {[%clk 0:00:51.7]} 21... Ng6 {[%clk 0:00:31.4]} 22. Bc4 {[%clk
0:00:45.6]} 22... Nh4+ {[%clk 0:00:27.7]} 23. Kf2 {[%clk 0:00:45.5]} 23... Bc5
{[%clk 0:00:22.2]} 24. Kg3 {[%clk 0:00:24.7]} 24... Bd6+ {[%clk 0:00:21.9]} 25.
Kf2 {[%clk 0:00:22.4]} 25... Bc5 {[%clk 0:00:22.2]} 26. Na4 {[%clk 0:00:22]}
26... Bb4 {[%clk 0:00:20.8]} 27. Rd1 {[%clk 0:00:15.2]} 27... Ne4+ {[%clk
0:00:21.3]} 28. Kg1 {[%clk 0:00:14.5]} 28... Ng3 {[%clk 0:00:21.3]} 29. Rf2
{[%clk 0:00:11.8]} 29... Rxe3 {[%clk 0:00:20.6]} 30. Rd7 {[%clk 0:00:04.2]}
30... Rf3 {[%clk 0:00:12.6]} 31. Rxf3 {[%clk 0:00:04]} 31... Nxf3+ {[%clk
0:00:13.5]} 32. Kg2 {[%clk 0:00:04.7]} 32... Nd2 {[%clk 0:00:09.4]} 33. Kxg3
{[%clk 0:00:04.6]} 33... Nxc4 {[%clk 0:00:10.1]} 34. bxc4 {[%clk 0:00:05.5]}
34... Be1+ {[%clk 0:00:10.2]} 35. Kg2 {[%clk 0:00:05.2]} 35... Bh4 {[%clk
0:00:08.1]} 36. Bd4 {[%clk 0:00:05.1]} 36... a6 {[%clk 0:00:08.1]} 37. Nc5
{[%clk 0:00:05]} 37... Rb8 {[%clk 0:00:08.1]} 38. a4 {[%clk 0:00:04.3]} 38...
Rb1 {[%clk 0:00:08.7]} 39. Kf3 {[%clk 0:00:04.2]} 39... Rd1 {[%clk 0:00:08.5]}
40. Rd8+ {[%clk 0:00:03.3]} 40... Kh7 {[%clk 0:00:08.2]} 41. Rd7 {[%clk
0:00:04]} 41... Rf1+ {[%clk 0:00:08.8]} 42. Ke2 {[%clk 0:00:03.7]} 42... Rh1
{[%clk 0:00:08.7]} 43. Rxf7 {[%clk 0:00:03.3]} 43... Rh2+ {[%clk 0:00:09.3]} 44.
Kd3 {[%clk 0:00:02.7]} 44... Rxh3+ {[%clk 0:00:09.8]} 45. Ke4 {[%clk 0:00:03.3]}
45... h5 {[%clk 0:00:06.2]} 46. Rxg7+ {[%clk 0:00:03.6]} 46... Kh6 {[%clk
0:00:06.9]} 47. Ne6 {[%clk 0:00:02.3]} 47... hxg4 {[%clk 0:00:06.6]} 48. Be3+
{[%clk 0:00:02.3]} 48... Kh5 {[%clk 0:00:06.4]} 49. Rh7+ {[%clk 0:00:01.5]}
49... Kg6 {[%clk 0:00:06.7]} 50. Nf8+ {[%clk 0:00:01.4]} 50... Kf6 {[%clk
0:00:07.6]} 51. Rh6+ {[%clk 0:00:01.6]} 51... Kg7 {[%clk 0:00:07.7]} 0-1

[Event "Early-Titled-Tuesday-Blitz-February-27-2024"]
[Site "Chess.com"]
[Date "2024.02.27"]
[Round "4"]
[White "CaspiIsrael"]
[Black "Preobrazhenska_D2011"]
[Result "1-0"]
[WhiteElo "2678"]
[BlackElo "2437"]
[TimeControl "180+1"]
[EndTime "8:38:55 PST"]
[Termination "CaspiIsrael won by checkmate"]

1. e4 {[%clk 0:03:00]} 1... c5 {[%clk 0:02:59.9]} 2. Nf3 {[%clk 0:03:00.1]} 2...
d6 {[%clk 0:03:00.5]} 3. d4 {[%clk 0:02:59.8]} 3... cxd4 {[%clk 0:03:01.4]} 4.
Nxd4 {[%clk 0:03:00.4]} 4... Nf6 {[%clk 0:03:00.5]} 5. Nc3 {[%clk 0:03:01]} 5...
a6 {[%clk 0:03:00.9]} 6. Rg1 {[%clk 0:02:59.5]} 6... e5 {[%clk 0:02:58.3]} 7.
Nb3 {[%clk 0:02:59.1]} 7... h5 {[%clk 0:02:51.6]} 8. Bg5 {[%clk 0:02:58]} 8...
Be6 {[%clk 0:02:44.8]} 9. Qd2 {[%clk 0:02:51.5]} 9... Nbd7 {[%clk 0:02:43.1]}
10. O-O-O {[%clk 0:02:51]} 10... Be7 {[%clk 0:02:39.1]} 11. Kb1 {[%clk
0:02:51.1]} 11... b5 {[%clk 0:02:38.3]} 12. f3 {[%clk 0:02:50.5]} 12... Rc8
{[%clk 0:02:32.3]} 13. h4 {[%clk 0:02:43.1]} 13... Qc7 {[%clk 0:02:29.8]} 14.
Bd3 {[%clk 0:02:35.8]} 14... Nb6 {[%clk 0:02:14.7]} 15. Bxf6 {[%clk 0:02:32.8]}
15... gxf6 {[%clk 0:02:01.3]} 16. f4 {[%clk 0:02:21.7]} 16... b4 {[%clk
0:01:06.8]} 17. Nd5 {[%clk 0:02:18.4]} 17... Nxd5 {[%clk 0:00:56.3]} 18. exd5
{[%clk 0:02:18.1]} 18... Bg4 {[%clk 0:00:56.5]} 19. Rde1 {[%clk 0:02:14.9]}
19... Qb6 {[%clk 0:00:43.3]} 20. Rgf1 {[%clk 0:02:04.9]} 20... a5 {[%clk
0:00:40.6]} 21. Nc1 {[%clk 0:01:56.5]} 21... a4 {[%clk 0:00:37.7]} 22. f5 {[%clk
0:01:48.1]} 22... a3 {[%clk 0:00:35.5]} 23. Nb3 {[%clk 0:01:46.7]} 23... axb2
{[%clk 0:00:34.8]} 24. Kxb2 {[%clk 0:01:47.6]} 24... Ra8 {[%clk 0:00:27.9]} 25.
Re4 {[%clk 0:01:45.3]} 25... Ra4 {[%clk 0:00:22]} 26. Rc4 {[%clk 0:01:40.3]}
26... Kd7 {[%clk 0:00:15.1]} 27. Rc6 {[%clk 0:01:38.2]} 27... Qb7 {[%clk
0:00:14.4]} 28. Bc4 {[%clk 0:01:20.3]} 28... Rha8 {[%clk 0:00:12.8]} 29. Nc1
{[%clk 0:01:20.1]} 29... Ra3 {[%clk 0:00:05.9]} 30. Bb3 {[%clk 0:01:19.6]} 30...
R3a5 {[%clk 0:00:04.1]} 31. g3 {[%clk 0:01:19.1]} 31... Rc8 {[%clk 0:00:04.2]}
32. Rxc8 {[%clk 0:01:11.9]} 32... Kxc8 {[%clk 0:00:05.1]} 33. Nd3 {[%clk
0:01:08.5]} 33... Rb5 {[%clk 0:00:04.7]} 34. Rf2 {[%clk 0:01:05.6]} 34... Kd8
{[%clk 0:00:04.6]} 35. Qh6 {[%clk 0:01:05.1]} 35... Kc7 {[%clk 0:00:04.4]} 36.
Qg7 {[%clk 0:01:02.3]} 36... Qc8 {[%clk 0:00:04.8]} 37. Qxf7 {[%clk 0:01:01.6]}
37... Qd8 {[%clk 0:00:05.5]} 38. Ba4 {[%clk 0:00:57.7]} 38... Ra5 {[%clk
0:00:05.6]} 39. Bc6 {[%clk 0:00:57.4]} 39... Kb6 {[%clk 0:00:04.7]} 40. Nxb4
{[%clk 0:00:52]} 40... Qc7 {[%clk 0:00:05.2]} 41. Qe8 {[%clk 0:00:50.9]} 41...
Ra7 {[%clk 0:00:04]} 42. c4 {[%clk 0:00:48.4]} 42... Kc5 {[%clk 0:00:03.1]} 43.
Nd3+ {[%clk 0:00:40.9]} 43... Kd4 {[%clk 0:00:03.5]} 44. Nc1 {[%clk 0:00:33.8]}
44... Ke3 {[%clk 0:00:03.1]} 45. Rc2 {[%clk 0:00:29.7]} 45... Qa5 {[%clk
0:00:03.6]} 46. Qb8 {[%clk 0:00:25.9]} 46... Qa3+ {[%clk 0:00:03.8]} 47. Kb1
{[%clk 0:00:26.1]} 47... Ra5 {[%clk 0:00:03.7]} 48. Qb3+ {[%clk 0:00:22.2]}
48... Kd4 {[%clk 0:00:03.1]} 49. Rd2+ {[%clk 0:00:18.4]} 49... Kc5 {[%clk
0:00:03.7]} 50. Nd3+ {[%clk 0:00:17.4]} 50... Kd4 {[%clk 0:00:03.5]} 51. Nf2+
{[%clk 0:00:16.5]} 51... Kc5 {[%clk 0:00:03.6]} 52. Ne4# {[%clk 0:00:16.5]} 1-0